lending/lending_fUSD_20250501
["ID","MTS","AMOUNT","RATE_DAILY","PERIOD"]
[359496610,1746066632421,-595.63987481,0.00019398,2]
[359496611,1746066632494,-2101.89383119,0.00019398,2]
[359496612,1746066632505,-1736.22084195,0.00019398,2]
[359496613,1746066632516,-409.20343714,0.00019398,2]
[359496614,1746066632527,-13211.46413173,0.00019398,2]
[359496615,1746066632536,-502.00665785,0.00019473,2]
[359496616,1746066632546,-500.96691033,0.00019473,2]
[359496617,1746066632555,-500.0,0.00019473,2]
[359496618,1746066632564,-500.0,0.00019473,2]
[359496619,1746066632573,-500.0,0.00019473,2]
[359496620,1746066632583,-240.80445625,0.00019487,2]
[359496621,1746066632592,-2416.06992478,0.00019487,2]
[359496622,1746066632602,-500.0,0.00019492,2]
[359496623,1746066632611,-500.0,0.00019492,2]
[359496624,1746066632622,-500.0,0.00019492,2]
[359496626,1746066632633,-300.0,0.00019492,2]
[359496627,1746066632642,-1033.58480886,0.00019492,2]
[359496629,1746066632652,-1033.58480886,0.00019492,2]
[359496631,1746066632661,-1033.58480886,0.00019492,2]
[359496633,1746066632671,-1033.58480886,0.00019492,2]
[359496636,1746066632682,-1033.58480886,0.00019492,2]
[359496639,1746066632692,-1033.58480886,0.00019492,2]
[359496641,1746066632701,-1033.58480886,0.00019492,2]
[359496642,1746066632710,-1033.58480886,0.00019492,2]
[359496643,1746066632719,-1033.58480886,0.00019492,2]
[359496644,1746066632729,-1033.58480886,0.00019492,2]
[359496645,1746066632740,-1033.58480886,0.00019492,2]
[359496646,1746066632750,-1033.58480886,0.00019492,2]
[359496647,1746066632759,-1033.58480886,0.00019492,2]
[359496648,1746066632768,-1033.58480886,0.00019492,2]
[359496649,1746066632778,-1033.58480886,0.00019492,2]
[359496650,1746066632787,-1033.58480886,0.00019492,2]
[359496651,1746066632796,-1033.58480886,0.00019492,2]
[359496652,1746066632805,-1033.58480886,0.00019492,2]
[359496653,1746066632815,-1033.58480886,0.00019492,2]
[359496654,1746066632824,-1033.58480886,0.00019492,2]
[359496655,1746066632834,-1033.58480886,0.00019492,2]
[359496656,1746066632843,-1033.58480886,0.00019492,2]
[359496657,1746066632853,-1033.58480886,0.00019492,2]
[359496658,1746066632863,-1033.58480886,0.00019492,2]
[359496659,1746066632873,-1033.58480886,0.00019492,2]
[359496660,1746066632882,-1033.58480886,0.00019492,2]
[359496661,1746066632892,-1033.58480886,0.00019492,2]
[359496662,1746066632901,-1033.58480886,0.00019492,2]
[359496663,1746066632911,-1033.58480886,0.00019492,2]
[359496664,1746066632920,-1033.58480886,0.00019492,2]
[359496665,1746066632930,-1033.58480886,0.00019492,2]
[359496666,1746066632940,-1033.58480886,0.00019492,2]
[359496667,1746066632949,-1033.58480886,0.00019492,2]
[359496668,1746066632959,-1033.58480886,0.00019492,2]
[359496669,1746066632969,-1033.58480886,0.00019492,2]
[359496670,1746066632979,-1033.58480886,0.00019492,2]
[359496671,1746066632988,-1033.58480886,0.00019492,2]
[359496672,1746066632998,-1033.58480886,0.00019492,2]
[359496673,1746066633007,-1033.58480886,0.00019492,2]
[359496674,1746066633017,-1033.58480886,0.00019492,2]
[359496675,1746066633027,-1033.58480886,0.00019492,2]
[359496676,1746066633037,-1033.58480886,0.00019492,2]
[359496677,1746066633047,-1033.58480886,0.00019492,2]
[359496678,1746066633057,-1033.58480886,0.00019492,2]
[359496679,1746066633067,-1033.58480886,0.00019492,2]
[359496680,1746066633076,-1033.58480886,0.00019492,2]
[359496681,1746066633086,-1033.58480886,0.00019492,2]
[359496682,1746066633095,-1033.58480886,0.00019492,2]
[359496683,1746066633105,-1033.58480886,0.00019492,2]
[359496684,1746066633115,-1033.58480886,0.00019492,2]
[359496685,1746066633124,-1033.58480886,0.00019492,2]
[359496686,1746066633134,-1033.58480886,0.00019492,2]
[359496687,1746066633144,-1033.58480886,0.00019492,2]
[359496688,1746066633153,-1033.58480886,0.00019492,2]
[359496689,1746066633163,-1033.58480886,0.00019492,2]
[359496690,1746066633173,-1033.58480886,0.00019492,2]
[359496691,1746066633183,-1033.58480886,0.00019492,2]
[359496692,1746066633194,-1033.58480886,0.00019492,2]
[359496693,1746066633204,-1037.83824428,0.00019492,2]
[359496694,1746066633214,-1037.83824428,0.00019492,2]
[359496695,1746066633223,-1037.83824428,0.00019492,2]
[359496696,1746066633232,-1037.83824428,0.00019492,2]
[359496697,1746066633242,-1037.83824428,0.00019492,2]
[359496698,1746066633436,-1037.83824428,0.00019492,2]
[359496699,1746066633462,-1037.83824428,0.00019492,2]
[359496700,1746066633471,-1037.83824428,0.00019492,2]
[359496701,1746066633481,-1037.83824428,0.00019492,2]
[359496702,1746066633491,-1037.83824428,0.00019492,2]
[359496703,1746066633500,-1037.83824428,0.00019492,2]
[359496704,1746066633509,-1037.83824428,0.00019492,2]
[359496705,1746066633519,-1037.83824428,0.00019492,2]
[359496706,1746066633528,-1037.83824428,0.00019492,2]
[359496707,1746066633537,-1037.83824428,0.00019492,2]
[359496708,1746066633547,-1037.83824428,0.00019492,2]
[359496709,1746066633556,-1037.83824428,0.00019492,2]
[359496710,1746066633565,-1037.83824428,0.00019492,2]
[359496711,1746066633574,-1037.83824428,0.00019492,2]
[359496712,1746066633584,-1037.83824428,0.00019492,2]
[359496713,1746066633593,-1037.83824428,0.00019492,2]
[359496714,1746066633603,-1037.83824428,0.00019492,2]
[359496715,1746066633612,-603.82228982,0.00019492,2]
[359496716,1746066633624,-434.01595446,0.00019492,2]
[359496717,1746066633634,-1025.6918826,0.00019492,2]
[359496718,1746066633646,-12.14636168,0.00019492,2]
[359496719,1746066633656,-1037.83824428,0.00019492,2]
[359496720,1746066633666,-750.01539404,0.00019492,2]
[359496721,1746066633696,-287.82285024,0.00019492,2]
[359496722,1746066633705,-183.31828343,0.00019492,2]
[359496723,1746066633717,-577.08821268,0.00019492,2]
[359496724,1746066633728,-277.43174808,0.00019492,2]
[359496725,1746066633738,-150.0,0.00019493,2]
[359496726,1746066633747,-150.0,0.00019493,2]
[359496727,1746066633757,-500.0,0.00019493,2]
[359496728,1746066633766,-139.53325392,0.00019498,2]
[359496729,1746066638096,-2353.37527564,0.00019498,2]
[359496730,1746066638150,-7870.6007618,0.00019498,2]
[359496731,1746066638205,-3479.90276168,0.00019498,2]
[359496732,1746066638217,-5018.87628665,0.00019498,2]
[359496733,1746066638261,-867.01175721,0.00019498,2]
[359496734,1746066638317,-1036.01785492,0.00019498,2]
[359496735,1746066638372,-1214.92789561,0.00019498,2]
[359496736,1746066638383,-70027.34135257,0.00019498,2]
[359496737,1746066638392,-150.0,0.0001952,2]
[359496738,1746066638403,-500.0,0.0001952,2]
[359496739,1746066638413,-207.07129358,0.00019548,2]
[359496740,1746066638423,-500.0,0.00019548,2]
[359496741,1746066638433,-500.0,0.00019575,2]
[359496742,1746066638443,-500.0,0.00019603,2]
[359496743,1746066638454,-500.0,0.0001963,2]
[359496744,1746066638463,-500.0,0.0001965,2]
[359496745,1746066638472,-500.0,0.00019657,2]
[359496746,1746066638482,-500.0,0.00019685,2]
[359496748,1746066638492,-500.0,0.00019712,2]
[359496750,1746066638501,-500.0,0.0001974,2]
[359496752,1746066638511,-11388.09325856,0.0001975,2]
[359496753,1746066638520,-500.0,0.00019767,2]
[359496754,1746066638529,-221.11359577,0.00019773,2]
[359496755,1746066638539,-221.11359573,0.00019787,2]
[359496757,1746066638548,-500.0,0.00019794,2]
[359496759,1746066638557,-221.11359573,0.00019801,2]
[359496761,1746066638566,-500.0,0.00019802,2]
[359496763,1746066638576,-273.60398612,0.00019802,2]
[359496765,1746066638585,-500.0,0.00019802,2]
[359496767,1746066638594,-500.0,0.00019802,2]
[359496770,1746066638604,-500.0,0.00019802,2]
[359496773,1746066638614,-500.0,0.00019802,2]
[359496775,1746066638623,-331.54456548,0.00019802,2]
[359496777,1746066638632,-23900.0,0.00019803,2]
[359496779,1746066638641,-263.25846258,0.00019804,2]
[359496782,1746066638651,-221.11359573,0.00019815,2]
[359496785,1746066638660,-263.25846256,0.00019818,2]
[359496788,1746066638669,-500.0,0.00019822,2]
[359496791,1746066638679,-221.11359573,0.00019829,2]
[359496793,1746066638688,-263.25846256,0.00019831,2]
[359496796,1746066638698,-221.11359573,0.00019844,2]
[359496799,1746066638708,-263.25846256,0.00019845,2]
[359496802,1746066638717,-500.0,0.00019849,2]
[359496804,1746066638727,-221.11359573,0.00019858,2]
[359496805,1746066638736,-263.25846256,0.00019859,2]
[359496806,1746066638745,-221.11359573,0.00019872,2]
[359496807,1746066638755,-1042.55,0.00019873,2]
[359496808,1746066638764,-6713.86,0.00019873,2]
[359496809,1746066638773,-694.02,0.00019873,2]
[359496810,1746066638782,-9999.99,0.00019873,2]
[359496811,1746066638792,-1538.18,0.00019873,2]
[359496812,1746066638801,-646.75,0.00019873,2]
[359496813,1746066638811,-150.99,0.00019873,2]
[359496814,1746066638821,-434.96,0.00019873,2]
[359496815,1746066638830,-999.99,0.00019873,2]
[359496816,1746066638840,-500.0,0.00019877,2]
[359496817,1746066638849,-221.11359573,0.00019886,2]
[359496818,1746066638858,-1780.8076,0.000199,2]
[359496819,1746066638867,-2284.93525052,0.000199,2]
[359496820,1746066638876,-221.11359573,0.000199,2]
[359496821,1746066638885,-5800.0,0.000199,2]
[359496822,1746066638896,-157.73745098,0.000199,3]
[359496823,1746066638905,-500.0,0.00019904,2]
[359496824,1746066638914,-338.23581639,0.00019931,2]
[359496825,1746066638923,-499.99,0.00019973,2]
[359496826,1746066638933,-2051.32,0.00019973,2]
[359496827,1746066638943,-500.0,0.00019973,2]
[359496828,1746066638954,-500.0,0.00019973,2]
[359496829,1746066638964,-501.06029694,0.00019973,2]
[359496830,1746066638973,-170.0,0.00019973,2]
[359496831,1746066638982,-500.0,0.00019973,2]
[359496832,1746066638992,-500.0,0.00019973,2]
[359496833,1746066639007,-500.0,0.00019973,2]
[359496834,1746066639017,-505.45280058,0.00019973,2]
[359496835,1746066639027,-500.0,0.00019973,2]
[359496836,1746066639037,-508.9980583,0.00019973,2]
[359496837,1746066639047,-500.59002653,0.00019973,2]
[359496838,1746066639056,-500.0,0.00019973,2]
[359496839,1746066639066,-500.0,0.00019973,2]
[359496840,1746066639075,-211.24478406,0.00019973,2]
[359496841,1746066639084,-500.0,0.00019973,2]
[359496842,1746066639094,-311.89112912,0.00019973,2]
[359496843,1746066639104,-500.32924535,0.00019973,2]
[359496844,1746066639113,-503.89540493,0.00019973,2]
[359496845,1746066639123,-270.89897558,0.00019973,2]
[359496846,1746066639133,-500.48107556,0.00019973,2]
[359496847,1746066639143,-500.0,0.00019973,2]
[359496848,1746066639153,-500.43332278,0.00019973,2]
[359496849,1746066639162,-315.56371199,0.00019973,2]
[359496850,1746066639172,-500.64631312,0.00019973,2]
[359496851,1746066639181,-500.0,0.00019973,2]
[359496852,1746066639191,-500.0,0.00019973,2]
[359496853,1746066639201,-344.27675877,0.00019973,2]
[359496854,1746066639211,-501.41990566,0.00019973,2]
[359496855,1746066639221,-500.0,0.00019973,2]
[359496856,1746066639231,-39570.31088758,0.0001998,2]
[359496857,1746066639240,-154.11594364,0.0001999,2]
[359496858,1746066639250,-323.27492623,0.00019999,2]
[359496859,1746066639260,-500.0,0.00019999,2]
[359496860,1746066639269,-5088530.49974474,0.0002,2]
[359496861,1746066639926,-40893.88853031,0.0002,2]
[359496864,1746066640730,-263.25846256,0.00019873,2]
[359496865,1746066640740,-1736.74153744,0.0002,2]
[359496866,1746066640752,-1258777.79517376,0.0002,2]
[359496867,1746066640762,-36887.30487628,0.0002,2]
[359496868,1746066640771,-1563445.02453111,0.0002,2]
[359496869,1746066640800,-2084.96008536,0.0002,2]
[359496870,1746066640812,-908.65000002,0.0002,2]
[359496882,1746066643287,-26031.31667003,0.0002,2]
[359496883,1746066643559,-28981.42942138,0.0002,2]
[359496916,1746066646162,-263.25846256,0.00019886,2]
[359496917,1746066646173,-12736.85354444,0.0002,2]
[359496918,1746066646185,-82334.94453801,0.0002,2]
[359496919,1746066646217,-17319.0871434,0.0002,2]
[359496920,1746066646333,-658.07707405,0.0002,2]
[359496921,1746066646507,-22432.81845403,0.0002,2]
[359496922,1746066646600,-27339.4002085,0.0002,2]
[359496926,1746066796174,212.80866622,0.00019298,2]
[359496927,1746067063967,291.25,0.00018876,2]
[359496928,1746067118528,955.15,0.00018972,2]
[359496929,1746067123950,248.27677724,0.00019298,2]
[359496930,1746067146936,1016.08,0.00018876,2]
[359496931,1746067147176,1016.08,0.00018881,2]
[359496932,1746067147363,1016.08,0.00018886,2]
[359496933,1746067147573,1016.08,0.00018891,2]
[359496934,1746067147779,1016.08,0.00018896,2]
[359496935,1746067148178,1016.08,0.00018901,2]
[359496936,1746067148323,190.908825,0.00019313,2]
[359496937,1746067148401,1016.08,0.00018906,2]
[359496938,1746067148631,1016.08,0.00018911,2]
[359496939,1746067148835,1016.08,0.00018916,2]
[359496940,1746067149071,375.28515118,0.00018921,2]
[359496941,1746067149094,640.79484882,0.00018921,2]
[359496942,1746067149466,1016.08,0.00018926,2]
[359496943,1746067149694,1016.08,0.00018931,2]
[359496944,1746067149936,1016.08,0.00018936,2]
[359496945,1746067150124,1016.08,0.00018941,2]
[359496946,1746067150400,1016.08,0.00018946,2]
[359496947,1746067150642,1016.08,0.00018951,2]
[359496948,1746067151054,1016.08,0.00018956,2]
[359496949,1746067151294,1016.08,0.00018961,2]
[359496950,1746067151511,1016.08,0.00018966,2]
[359496951,1746067151708,1016.08,0.0001897,2]
[359496952,1746067209135,299.879305,0.000193,2]
[359496953,1746067302430,716.56237,0.0002499,34]
[359496954,1746067302469,716.56238,0.0002874,42]
[359496955,1746067303034,716.56238,0.0002625,37]
[359496956,1746067303156,716.56238,0.0002749,40]
[359496957,1746067303219,716.56238,0.0002999,45]
[359496958,1746067322518,150.0,0.00018825,2]
[359496959,1746067357196,3622.21,0.00018951,2]
[359496960,1746067402880,216.37,0.00018794,2]
[359496961,1746067423641,7852.42,0.00018849,2]
[359496962,1746067449098,250.0,0.00017,2]
[359496963,1746067450464,300.0,0.00019,2]
[359496964,1746067451449,300.0,0.00019297,2]
[359496965,1746067451473,196.55355446,0.00019297,2]
[359496966,1746067486025,23900.0,0.00018897,2]
[359496967,1746067508870,219.37,0.00015084,2]
[359496968,1746067531171,195.87,0.00018851,2]
[359496971,1746067604528,150.0,0.00032867,60]
[359496972,1746067608008,716.56238,0.0002543,35]
[359496973,1746067614367,250.0,0.00018755,2]
[359496985,1746067666791,200.0,0.00018769,2]
[359496986,1746067674791,1000.0,0.00018769,2]
[359496987,1746067687938,606.11003041,0.00032876,60]
[359496988,1746067722512,2010.52,0.00018769,2]
[359496989,1746067732951,827.78,0.00016852,2]
[359496990,1746067733076,827.78,0.00019115,2]
[359497006,1746067832313,-150.0,0.0001937,2]
[359497007,1746067832322,-200.0,0.00019376,2]
[359497008,1746067832332,-250.0,0.00019382,2]
[359497009,1746067832341,-485.47249947,0.00019387,2]
[359497010,1746067832351,-200.0,0.00019388,2]
[359497011,1746067832360,-300.0,0.00019395,2]
[359497012,1746067832369,-300.0,0.00019395,2]
[359497013,1746067832379,-162.39024263,0.00019395,2]
[359497014,1746067832409,-1037.60975737,0.00019395,2]
[359497015,1746067832418,-300.0,0.00019395,2]
[359497016,1746067832427,-275.53526201,0.00019396,2]
[359497017,1746067832438,-224.46473799,0.00019396,2]
[359497018,1746067832447,-500.0,0.00019396,2]
[359497019,1746067832456,-500.0,0.00019396,2]
[359497020,1746067832466,-500.0,0.00019396,2]
[359497021,1746067832475,-380.6897659,0.00019396,2]
[359497022,1746067832488,-119.3102341,0.00019396,2]
[359497023,1746067832497,-500.0,0.00019396,2]
[359497024,1746067832507,-500.0,0.00019396,2]
[359497025,1746067832516,-500.0,0.00019396,2]
[359497026,1746067832526,-500.0,0.00019396,2]
[359497027,1746067832535,-71.26073628,0.00019396,2]
[359497028,1746067832547,-428.73926372,0.00019396,2]
[359497029,1746067832557,-392.3549923,0.00019396,2]
[359497082,1746067838352,-107.6450077,0.00019396,2]
[359497083,1746067838363,-395.69720326,0.00019396,2]
[359497084,1746067838372,-364.68778904,0.00019396,2]
[359497085,1746067838398,-135.31221096,0.00019396,2]
[359497086,1746067838408,-500.0,0.00019396,2]
[359497087,1746067838418,-119.63333581,0.00019396,2]
[359497088,1746067838434,-380.36666419,0.00019396,2]
[359497089,1746067838445,-500.0,0.00019396,2]
[359497090,1746067838455,-500.0,0.00019396,2]
[359497091,1746067838465,-500.0,0.00019396,2]
[359497092,1746067838475,-500.0,0.00019396,2]
[359497093,1746067838486,-500.0,0.00019396,2]
[359497094,1746067838496,-7836.83005311,0.00019397,2]
[359497095,1746067838508,-5029.14766773,0.00019397,2]
[359497096,1746067838520,-1600.94212731,0.00019397,2]
[359497097,1746067838590,-6129.88,0.00019397,2]
[359497098,1746067838634,-501.03359704,0.00019397,2]
[359497099,1746067838661,-21593.52868251,0.00019397,2]
[359497100,1746067838670,-3756.5801,0.00019398,2]
[359497102,1746067838679,-500.0,0.00019398,2]
[359497104,1746067838690,-11905.8447,0.00019398,2]
[359497106,1746067838701,-10021.13840209,0.000194,2]
[359497107,1746067838711,-1144.0,0.00019471,2]
[359497108,1746067838721,-9827.44,0.00019487,2]
[359497109,1746067838731,-150.99,0.00019487,2]
[359497110,1746067838741,-15313.92,0.00019487,2]
[359497111,1746067838750,-2051.32,0.00019487,2]
[359497112,1746067838759,-6713.86,0.00019487,2]
[359497113,1746067838769,-6950.92,0.00019487,2]
[359497114,1746067838778,-646.75,0.00019487,2]
[359497116,1746067838788,-9999.99,0.00019487,2]
[359497117,1746067838797,-1538.18,0.00019487,2]
[359497118,1746067838806,-150.99,0.00019487,2]
[359497119,1746067838815,-499.99,0.00019487,2]
[359497121,1746067838826,-1042.55,0.00019487,2]
[359497123,1746067838836,-999.99,0.00019487,2]
[359497124,1746067838845,-2445.9,0.00019559,2]
[359497126,1746067838854,-1500.0,0.00019559,2]
[359497128,1746067838864,-3489.04965474,0.00019663,2]
[359497130,1746067838873,-175.58625171,0.00019673,2]
[359497132,1746067838882,-197.44384694,0.00019673,2]
[359497134,1746067838892,-4670.76,0.00019673,2]
[359497136,1746067838902,-3489.04965468,0.00019689,2]
[359497138,1746067838911,-3489.04965468,0.00019716,2]
[359497140,1746067838921,-46791.4418,0.00019733,2]
[359497142,1746067838930,-3489.04965468,0.00019742,2]
[359497144,1746067838939,-3489.04965468,0.00019768,2]
[359497146,1746067838948,-500.0,0.00019772,2]
[359497148,1746067838958,-500.0,0.00019772,2]
[359497150,1746067838966,-500.0,0.00019772,2]
[359497152,1746067838975,-500.0,0.00019772,2]
[359497154,1746067838984,-500.0,0.00019772,2]
[359497156,1746067838994,-500.0,0.00019772,2]
[359497158,1746067839003,-500.0,0.00019772,2]
[359497160,1746067839012,-435.92650229,0.00019772,2]
[359497162,1746067839023,-500.0,0.00019772,2]
[359497164,1746067839032,-512.90480929,0.00019773,2]
[359497166,1746067839041,-500.0,0.00019773,2]
[359497168,1746067839050,-92007.5872,0.00019773,2]
[359497170,1746067839059,-3517.3706,0.00019773,2]
[359497172,1746067839068,-3489.04965468,0.00019795,2]
[359497174,1746067839077,-1000.0,0.000198,2]
[359497176,1746067839086,-3489.04965468,0.00019821,2]
[359497178,1746067839095,-216.37,0.00019838,2]
[359497180,1746067839105,-3489.04965468,0.00019847,2]
[359497182,1746067839114,-501.61179285,0.00019873,2]
[359497184,1746067839124,-500.0,0.00019873,2]
[359497186,1746067839133,-373.44777472,0.00019873,2]
[359497188,1746067839143,-163.01328706,0.00019873,2]
[359497190,1746067839152,-500.0,0.00019873,2]
[359497192,1746067839161,-3489.04965468,0.00019874,2]
[359497194,1746067839171,-1780.8076,0.0001988,2]
[359497195,1746067839179,-195.72951574,0.00019882,2]
[359497197,1746067839189,-177.39555671,0.000199,2]
[359497199,1746067839198,-612.2993,0.000199,2]
[359497201,1746067839207,-3489.04965468,0.000199,2]
[359497203,1746067839216,-298.96249271,0.000199,2]
[359497205,1746067839227,-57225.01292444,0.000199,2]
[359497207,1746067839237,-157.73745098,0.000199,3]
[359497210,1746067839248,-170.0,0.00019973,2]
[359497212,1746067839258,-500.0,0.00019973,2]
[359497213,1746067839267,-500.0,0.00019973,2]
[359497215,1746067839276,-500.60294482,0.00019973,2]
[359497217,1746067839285,-500.0,0.00019973,2]
[359497219,1746067839295,-500.0,0.00019973,2]
[359497221,1746067839304,-500.81204882,0.00019973,2]
[359497223,1746067839313,-503.89540493,0.00019973,2]
[359497225,1746067839323,-500.0,0.00019973,2]
[359497234,1746067839513,-500.0,0.00019973,2]
[359497235,1746067839524,-314.52827151,0.00019973,2]
[359497236,1746067839533,-500.0,0.00019973,2]
[359497237,1746067839541,-500.0,0.00019973,2]
[359497238,1746067839550,-500.32924535,0.00019973,2]
[359497239,1746067839560,-311.89112912,0.00019973,2]
[359497240,1746067839569,-500.0,0.00019973,2]
[359497241,1746067839578,-154.11594364,0.0001999,2]
[359497242,1746067839588,-154.11594364,0.0001999,2]
[359497243,1746067839597,-500.0,0.00019999,2]
[359497244,1746067839606,-323.27492623,0.00019999,2]
[359497245,1746067839615,-4930027.15916086,0.0002,2]
[359497247,1746067840546,-1111.75,0.00019673,2]
[359497250,1746067841196,-1493.27209043,0.00019673,2]
[359497251,1746067841269,-3835.11629948,0.00019673,2]
[359497252,1746067841281,-8261.93562539,0.00019673,2]
[359497253,1746067841305,-3867.83163094,0.00019673,2]
[359497254,1746067841316,-733.6880036,0.00019673,2]
[359497255,1746067841343,-2000.0,0.00019673,2]
[359497256,1746067841354,-70703.99355016,0.00019673,2]
[359497257,1746067841364,-2284.93525052,0.000199,2]
[359497258,1746067841373,-996956.52417079,0.0002,2]
[359497259,1746067841383,-25863.54514019,0.0002,2]
[359497260,1746067841392,-200.0,0.0002,2]
[359497261,1746067841402,-200.0,0.0002,2]
[359497262,1746067841412,-200.0,0.00020127,2]
[359497263,1746067841422,-200.0,0.000202,2]
[359497264,1746067841431,-200.0,0.000202,2]
[359497265,1746067841441,-5721.00612911,0.000202,2]
[359497266,1746067841450,-300.0,0.00020235,2]
[359497267,1746067841459,-200.0,0.00020402,2]
[359497268,1746067841469,-192.09798096,0.00020606,2]
[359497269,1746067841478,-5721.00612885,0.00020797,3]
[359497270,1746067841488,-216.37,0.00020882,2]
[359497271,1746067841498,-20000.0,0.00021,2]
[359497272,1746067841508,-350.0,0.00021,2]
[359497273,1746067841518,-1000.0,0.00021115,2]
[359497274,1746067841528,-420.0,0.00021132,2]
[359497275,1746067841538,-1031.42,0.000212,2]
[359497276,1746067841547,-1680.0,0.00021234,2]
[359497277,1746067841556,-250.0,0.00021307,2]
[359497278,1746067841566,-200.0,0.00021307,2]
[359497279,1746067841575,-250.0,0.00021307,2]
[359497280,1746067841584,-200.0,0.00021307,2]
[359497281,1746067841594,-5122.4,0.0002137,2]
[359497282,1746067841604,-827.78,0.00021379,2]
[359497283,1746067841613,-782.7783313,0.00021439,2]
[359497284,1746067841623,-300.0,0.00021605,2]
[359497285,1746067841632,-1000.0,0.00021644,2]
[359497286,1746067841642,-5721.00612885,0.00021693,3]
[359497287,1746067841651,-7314.86831856,0.000217,2]
[359497288,1746067841659,-5053.54823058,0.000218,2]
[359497289,1746067841669,-207.4,0.00021867,2]
[359497290,1746067841678,-157.8,0.00021917,2]
[359497291,1746067841687,-513.8227512,0.00021918,2]
[359497292,1746067841696,-216.37,0.00021927,2]
[359497293,1746067841705,-242.3,0.00021975,2]
[359497294,1746067841714,-500.0,0.00022025,2]
[359497295,1746067841723,-500.0,0.00022025,2]
[359497296,1746067841733,-505.45280058,0.00022025,2]
[359497297,1746067841743,-508.9980583,0.00022025,2]
[359497298,1746067841752,-187.20036533,0.00022025,2]
[359497299,1746067841761,-500.48107556,0.00022025,2]
[359497300,1746067841770,-501.41990566,0.00022025,2]
[359497301,1746067841780,-330.87895996,0.00022025,2]
[359497302,1746067841789,-344.27675877,0.00022025,2]
[359497303,1746067841799,-500.0,0.00022025,2]
[359497304,1746067841808,-500.0,0.00022025,2]
[359497305,1746067841818,-500.0,0.00022025,2]
[359497306,1746067841828,-162.68185268,0.00022025,2]
[359497307,1746067841840,-500.59002653,0.00022025,2]
[359497308,1746067841850,-500.64631312,0.00022025,2]
[359497309,1746067841859,-500.0,0.00022025,2]
[359497310,1746067841869,-500.0,0.00022025,2]
[359497311,1746067841879,-500.0,0.00022025,2]
[359497312,1746067841889,-500.0,0.00022025,2]
[359497313,1746067841898,-211.24478406,0.00022025,2]
[359497314,1746067841907,-197.44384692,0.00022122,2]
[359497315,1746067841918,-34265.62394593,0.000225,2]
[359497316,1746067841928,-5721.00612885,0.0002259,4]
[359497317,1746067841937,-505.41869876,0.0002271,2]
[359497318,1746067841947,-216.37,0.00022971,2]
[359497319,1746067841956,-202.4823363,0.00023,2]
[359497320,1746067841967,-1503.31289762,0.00023,2]
[359497321,1746067841976,-400.0,0.00023,2]
[359497322,1746067841985,-587.0,0.00023025,2]
[359497323,1746067841994,-33104.88413377,0.000232,2]
[359497324,1746067842002,-215.0738,0.00023236,2]
[359497325,1746067842011,-2351.0,0.00023248,2]
[359497326,1746067842020,-157.8,0.00023287,2]
[359497327,1746067842029,-175.58625166,0.00023318,2]
[359497328,1746067842038,-1000.0,0.00023462,2]
[359497329,1746067842048,-5721.00612885,0.00023486,4]
[359497330,1746067842057,-200.0,0.000235,2]
[359497331,1746067842067,-827.78,0.00023643,2]
[359497332,1746067842078,-1050.75,0.00023836,2]
[359497333,1746067842089,-13389.73962372,0.00023984,2]
[359497334,1746067842101,-30218.55660616,0.00024,2]
[359497335,1746067842112,-985.65582656,0.00024,2]
[359497336,1746067842122,-6407.92418044,0.00024,14]
[359497337,1746067842132,-4707.0374996,0.00024,2]
[359497338,1746067842142,-216.37,0.00024015,2]
[359497339,1746067842152,-250.0,0.00024156,2]
[359497340,1746067842163,-407.3691653,0.0002421,2]
[359497341,1746067842175,-3569.31157824,0.0002421,2]
[359497342,1746067842187,-298.96249269,0.00024213,2]
[359497343,1746067842198,-5721.00612885,0.00024383,5]
[359497344,1746067842208,-197.44384692,0.0002457,2]
[359497345,1746067842219,-223.0315306,0.00024605,2]